Workbook

Sheet 预算表
A1: 喜福来装饰工程预算表
A2: 工程地址： 工程总监：刘生 手机：13727460358
A3: 序号 | B3: 工程或费用名称 | C3: 单位 | D3: 数量 | E3: 包工包料单价 | F3: 包工包料合计 | G3: 备注
A4: 一、大厅、餐厅、入户花园、过道
A5: 1 | B5: 贴地砖 | C5: ㎡ | D5: 52 | E5: 48 | F5: =D5*E5 -> 2496 | G5: 一切人工（地砖800x800mm规格）
A6: 2 | B6: 刮灰 | C6: ㎡ | D6: 130 | E6: 26 | F6: =D6*E6 -> 3380 | G6: 多邦腻子粉，刮三次，包材料包人工
A7: 3 | B7: 油ICI | C7: ㎡ | D7: 130 | E7: 17 | F7: =D7*E7 -> 2210 | G7: 立邦或多乐士五合一油漆，包刷油ICI包打磨及一切人工
A8: 4 | B8: 门槛石 | C8: 条 | D8: 2 | E8: 50 | F8: =D8*E8 -> 100 | G8: 水泥沙及一切人工安装如果超过1M按2条算（大理石业主自购）
A9: 5 | B9: 地脚线 | C9: M | D9: 32 | E9: 25 | F9: =D9*E9 -> 800 | G9: 水泥沙铺贴，入墙抹平
A10: 6 | B10: 造型天花 | C10: ㎡ | D10: 28 | E10: 160 | F10: =D10*E10 -> 4480 | G10: 3x4木方：8厘石膏板，12厘板做框架，8x8拉爆及一切人工，如双层板另加50元一方
A11: 小计： | F11: =SUM(F5:F10) -> 13466
A12: 二、厨房
A13: 1 | B13: 贴地砖 | C13: ㎡ | D13: 7 | E13: 48 | F13: =D13*E13 -> 336 | G13: 一切人工（地砖800x800mm规格）
A14: 2 | B14: 贴墙砖40x80 | C14: ㎡ | D14: 26 | E14: 80 | F14: =D14*E14 -> 2080 | G14: 一切人工如贴60X120规格100元1方（瓷砖胶业主自购）
A15: 3 | B15: 防水处理 | C15: ㎡ | D15: 32 | E15: 42 | F15: =D15*E15 -> 1344 | G15: 德高防水，包材料包人工，并试水48小时
A16: 4 | B16: 装排污管 | C16: 项 | D16: 1 | E16: 250 | F16: =D16*E16 -> 250 | G16: 包联塑PVC110管为排污管，地漏排水为75管，洗手盆排水50管
A17: 5 | B17: 铝扣天花 | C17: ㎡ | D17: 6 | E17: 160 | F17: =D17*E17 -> 960 | G17: 300*300铝扣板，0.8厘厚，颜色任选
A18: 9 | B18: 打外墙砖 | C18: ㎡ | D18: 7 | E18: 45 | F18: =D18*E18 -> 315 | G18: 包打及一切人工
A19: 小计： | F19: =SUM(F13:F18) -> 5285
A20: 三、主人房
A21: 1 | B21: 贴地砖 | C21: ㎡ | D21: 16 | E21: 48 | F21: =D21*E21 -> 768 | G21: 一切人工如贴木纹砖80元/方
A22: 2 | B22: 刮灰 | C22: ㎡ | D22: 62 | E22: 26 | F22: =D22*E22 -> 1612 | G22: 多邦腻子粉，刮三次，包材料包人工
A23: 3 | B23: 油ICI | C23: ㎡ | D23: 62 | E23: 17 | F23: =D23*E23 -> 1054 | G23: 立邦或多乐士五合一油漆，包刷油ICI包打磨及一切人工
A24: 4 | B24: 地脚线 | C24: M | D24: 16 | E24: 25 | F24: =D24*E24 -> 400 | G24: 地脚线用325#海螺牌水泥沙铺贴，入墙抹平
A25: 小计： | F25: =SUM(F21:F24) -> 3834
A26: 四、小房
A27: 1 | B27: 贴地砖 | C27: ㎡ | D27: 10 | E27: 48 | F27: =D27*E27 -> 480 | G27: 一切人工如贴木纹砖80元/方
A28: 2 | B28: 刮灰 | C28: ㎡ | D28: 45 | E28: 26 | F28: =D28*E28 -> 1170 | G28: 多邦腻子粉，刮三次，包材料包人工
A29: 3 | B29: 油ICI | C29: ㎡ | D29: 45 | E29: 17 | F29: =D29*E29 -> 765 | G29: 立邦或多乐士五合一油漆，包刷油ICI包打磨及一切人工
A30: 4 | B30: 地脚线 | C30: M | D30: 12 | E30: 25 | F30: =D30*E30 -> 300 | G30: 地脚线用325#海螺牌水泥沙铺贴，入墙抹平
A31: 小计： | F31: =SUM(F27:F30) -> 2715
A32: 五、小孩房
A33: 1 | B33: 贴地砖 | C33: ㎡ | D33: 7.5 | E33: 48 | F33: =D33*E33 -> 360 | G33: 一切人工如贴木纹砖80元/方
A34: 2 | B34: 刮灰 | C34: ㎡ | D34: 38 | E34: 26 | F34: =D34*E34 -> 988 | G34: 多邦腻子粉，刮三次，包材料包人工
A35: 3 | B35: 油ICI | C35: ㎡ | D35: 38 | E35: 17 | F35: =D35*E35 -> 646 | G35: 立邦或多乐士五合一油漆，包刷油ICI包打磨及一切人工
A36: 4 | B36: 地脚线 | C36: M | D36: 11 | E36: 25 | F36: =D36*E36 -> 275 | G36: 地脚线用325#海螺牌水泥沙铺贴，入墙抹平
A37: 小计： | F37: =SUM(F33:F36) -> 2269
A38: 六、入户房
A39: 1 | B39: 贴地砖 | C39: ㎡ | D39: 7.5 | E39: 48 | F39: =D39*E39 -> 360 | G39: 一切人工如贴木纹砖80元/方
A40: 2 | B40: 刮灰 | C40: ㎡ | D40: 38 | E40: 26 | F40: =D40*E40 -> 988 | G40: 多邦腻子粉，刮三次，包材料包人工
A41: 3 | B41: 油ICI | C41: ㎡ | D41: 38 | E41: 17 | F41: =D41*E41 -> 646 | G41: 立邦或多乐士五合一油漆，包刷油ICI包打磨及一切人工
A42: 4 | B42: 地脚线 | C42: M | D42: 11 | E42: 25 | F42: =D42*E42 -> 275 | G42: 地脚线用325#海螺牌水泥沙铺贴，入墙抹平
A43: 小计： | F43: =SUM(F39:F42) -> 2269
A44: 七、公卫生间
A45: 1 | B45: 贴地砖 | C45: ㎡ | D45: 3.5 | E45: 48 | F45: =D45*E45 -> 168 | G45: 一切人工
A46: 2 | B46: 贴瓷片 | C46: ㎡ | D46: 19 | E46: 55 | F46: =D46*E46 -> 1045 | G46: 一切人工如贴抛光砖85元/方（瓷砖胶业主自购）
A47: 3 | B47: 防水处理 | C47: ㎡ | D47: 24 | E47: 42 | F47: 1008 | G47: 防水业主自购，包人工，并试水48小时
A48: 4 | B48: 装排污管 | C48: 项 | D48: 3 | E48: 250 | F48: 750 | G48: 包联塑PVC110管为排污管，地漏排水为75管，洗手盆排水50管
A49: 5 | B49: 沉池架空 | C49: ㎡ | D49: 3.5 | E49: 280 | F49: 980 | G49: 包水泥,沙,钢筋,及一切人工
A50: 6 | B50: 装地漏 | C50: 个 | D50: 2 | E50: 35 | F50: 70 | G50: 豪华不锈钢地漏，包安装
A51: 7 | B51: 装排粪管 | C51: 项 | D51: 1 | E51: 250 | F51: 250 | G51: 包联塑PVC110管为排污管，地漏排水为75管，洗手盆排水50管
A52: 8 | B52: 封下水管加隔音棉 | C52: 条 | D52: 3 | E52: 300 | F52: 900 | G52: 隔音棉，水泥沙，砖及一切人工
A53: 9 | B53: 门槛石 | C53: 条 | D53: 3 | E53: 50 | F53: 150 | G53: 水泥沙及一切人工安装（如果超过1M按2条算)（大理石业主自购）
A54: 10 | B54: 沉池防水 | C54: ㎡ | D54: 5 | E54: 42 | F54: 210 | G54: 德高防水，包材料包人工并试水48小时
A55: 11 | B55: 吊铝扣天花 | C55: ㎡ | D55: 4 | E55: 160 | F55: 640 | G55: 300*300铝扣板,铝合金角线修边，颜色任选
A56: 12 | F56: =D56*E56 -> 0
F57: =SUM(F45:F56) -> 6171
A58: 八、主卫
A59: 1 | B59: 贴地砖 | C59: ㎡ | D59: 4 | E59: 48 | F59: =D59*E59 -> 192 | G59: 一切人工
A60: 2 | B60: 贴墙砖40X80 | C60: ㎡ | D60: 19.5 | E60: 80 | F60: =D60*E60 -> 1560 | G60: 一切人工如贴抛光砖60x120规格100元/方（瓷砖胶业主自购）
A61: 3 | B61: 防水处理 | C61: ㎡ | D61: 23.5 | E61: 42 | F61: 987 | G61: 德高防水，包材料包人工并试水48小时
A62: 4 | B62: 装排污管 | C62: 项 | D62: 3 | E62: 250 | F62: 750 | G62: 包联塑PVC110管为排污管，地漏排水为75管，洗手盆排水50管
A63: 5 | B63: 沉池架空 | C63: ㎡ | D63: 4 | E63: 280 | F63: 1120 | G63: 包水泥,沙,钢筋,及一切人工
A64: 6 | B64: 装地漏 | C64: 个 | D64: 2 | E64: 35 | F64: 70 | G64: 豪华不锈钢地漏，包安装
A65: 7 | B65: 装排粪管 | C65: 项 | D65: 1 | E65: 250 | F65: 250 | G65: 包联塑PVC110管为排污管，地漏排水为75管，洗手盆排水50管
A66: 8 | B66: 封下水管，加隔音棉 | C66: 条 | D66: 3 | E66: 300 | F66: 900 | G66: 隔音棉，水泥沙，砖及一切人工
A67: 9 | B67: 门槛石 | C67: 条 | D67: 3 | E67: 50 | F67: 150 | G67: 水泥沙及一切人工安装（如果超过1M按2条算)（大理石业主自购）
A68: 10 | B68: 沉池防水 | C68: ㎡ | D68: 5 | E68: 42 | F68: 210 | G68: 德高防水，包材料包人工并试水48小时
A69: 11 | B69: 吊铝扣天花 | C69: ㎡ | D69: 4 | E69: 160 | F69: 640 | G69: 300*300铝扣板,铝合金角线修边，颜色任选
A70: 小计： | F70: =SUM(F59:F69) -> 6829
A71: 九、大小阳台
A72: 1 | B72: 贴地砖 | C72: ㎡ | D72: 10 | E72: 48 | F72: =D72*E72 -> 480 | G72: 一切人工
A73: 2 | B73: 防水处理 | C73: ㎡ | D73: 10 | E73: 42 | F73: =D73*E73 -> 420 | G73: 德高防水，包材料包人工并试水48小时
A74: 3 | B74: 刮灰 | C74: ㎡ | D74: 15 | E74: 26 | F74: =D74*E74 -> 390 | G74: 多邦腻子粉，刮三次，包材料包人工
A75: 4 | B75: 油ICI | C75: ㎡ | D75: 15 | E75: 17 | F75: =D75*E75 -> 255 | G75: 立邦或多乐士五合一油漆，包刷油ICI包打磨及一切人工
A76: 小计： | F76: =SUM(F72:F75) -> 1545
A77: 十、水电部分
A78: 1 | B78: 装给水 | C78: M | D78: 90 | E78: 45 | F78: =D78*E78 -> 4050 | G78: 冷热水日丰瓷芯管PPR25管,配件,不含水龙头
A79: 2 | B79: 装电位 | C79: 位 | D79: 120 | E79: 85 | F79: =D79*E79 -> 10200 | G79: 广东电缆厂，电线双皮多支，及一切人工，不含俊朗面板，不含灯具
A80: 3 | B80: 打线槽 | C80: M | D80: 110 | E80: 10 | F80: =D80*E80 -> 1100 | G80: 人工，及清运余泥
A81: 4 | B81: 补线槽 | C81: M | D81: 110 | E81: 10 | F81: =D81*E81 -> 1100 | G81: 包水泥沙，人工
A82: 小计： | F82: =SUM(F78:F81) -> 16450
A83: 十一、其它部分
A84: 1 | B84: 地面保护费 | C84: ㎡ | D84: 90 | E84: 15 | F84: =D84*E84 -> 1350 | G84: 纤维板及防雨面，胶带（客厅、餐厅、走道）
A85: 2 | B85: 打脚线水泥沙 | C85: M | D85: 85 | E85: 10 | F85: =D85*E85 -> 850 | G85: 包人工，清余泥
A86: 3 | B86: 全套五金安装费 | C86: 项 | D86: 1 | E86: 500 | F86: 500 | G86: 不含五金，含人工
A87: 4 | B87: 全套垃圾清理费 | C87: 项 | D87: 1 | E87: 2400 | F87: 2400 | G87: 现场清理垃圾运走
A88: 5 | B88: 全套搬运费 | C88: 项 | D88: 1 | E88: 3500 | F88: 3500 | G88: 不含业主所购材料
A89: 6 | B89: 全套墙面补修 | C89: 项 | D89: 1 | E89: 800 | F89: 800 | G89: 包人工及水泥沙
A90: 7 | B90: 全套灯具安装费 | C90: 项 | D90: 1 | E90: 500 | F90: 500 | G90: 不含灯，包人工
A91: 8 | B91: 水泥沙 | C91: ㎡ | D91: 75 | E91: 38 | F91: 2850 | G91: 水泥海螺325.沙包人工
A92: 9 | B92: 垃圾请车拉走 | C92: 项 | D92: 1 | E92: 1200 | F92: 1200 | G92: 垃圾车运走
A93: 小计： | F93: =SUM(F84:F92) -> 13950
A94: 工程总造价合计 | F94: 72896
A95: 说明：
A96: 一、以上材料，油漆均使用绿色环保材料施工；
A97: 二、电材料：厅空调4m㎡专线，主线2.5m㎡线，灯线1.5m㎡;
A98: 三、水电工程施工后及泥水工程进场，必须调试水压，测检防水，查检电路且路且经业主验收方可进入第二道工序。
A99: 四、地砖瓷片非常尺寸（厅及卧室地砖尺寸不少于600*600、大于800*800，厨房及卫生间瓷片和防滑砖尺寸不小于300*300、大于600*300）另补差价，铺地砖斜铺、工字形、拼花、填缝等工艺另补差价
A100: 五、电位计算：一个灯计一个位，一个开关计一个位，客厅大灯计两位，一个筒灯计一个位，一个开关控制多个筒灯则按二个筒灯计一位，空调、电视、电话、电脑、音箱一位按两个位计算，总箱每个单极计一位，总开关计两位,弱电箱里一位计两位；
A101: 六、本预算不包括：地砖、瓷片、灯饰、洁具、水龙头、锁、拉手、五金等，均由业主自购；
A102: 七、本工程预算均按未工程税，结算时按实际发生工程量及本预算报价之单价结算，增加项目双方另议，门窗全部不减；
A103: 八、本工程发生的物业管理处所交的一切费用均由业主自理（除施工工人出入证外）；
A104: 十、乙方代收搬运费，业主所购材料自请搬运。
A105: 注：乙方持本报价的最终解释权。
A106: 甲方： 乙方：
A107: 电话： 电话：
A108: 时间： 时间：
